[Event "Titled Tuesday Blitz February 28 Early 2023"]
[White "Mitrabha, Guha"]
[Black "Nazari, Arad"]
[WhiteFideId "5057000"]
[BlackFideId "12577324"]
[WhiteElo "2520"]
[BlackElo "2242"]
[Result "1/2-1/2"]
[Round "08"]
[TimeControl "180+2"]
[Date "2023.02.28"]
[WhiteClock "0:01:11"]
[BlackClock "0:00:05"]

1. d4 {[%clk 0:02:56]}  Nf6 {[%clk 0:03:00]} 2. Bg5 {[%clk 0:02:56]}  e6 {[%clk 0:02:58]} 3. Nd2 {[%clk 0:02:55]}  Be7 {[%clk 0:02:49]} 4. e4 {[%clk 0:02:41]}  c5 {[%clk 0:02:46]} 5. e5 {[%clk 0:02:37]}  Nd5 {[%clk 0:02:27]} 6. Bxe7 {[%clk 0:02:36]}  Qxe7 {[%clk 0:02:02]} 7. Ne4 {[%clk 0:02:34]}  O-O {[%clk 0:02:02]} 8. Nxc5 {[%clk 0:02:34]}  d6 {[%clk 0:02:00]} 9. exd6 {[%clk 0:02:33]}  Qxd6 {[%clk 0:02:00]} 10. Nf3 {[%clk 0:02:33]}  b6 {[%clk 0:01:58]} 11. Nd3 {[%clk 0:02:31]}  Bb7 {[%clk 0:01:55]} 12. Be2 {[%clk 0:02:31]}  Nb4 {[%clk 0:01:49]} 13. c3 {[%clk 0:02:28]}  Nxd3+ {[%clk 0:01:49]} 14. Qxd3 {[%clk 0:02:28]}  Nd7 {[%clk 0:01:47]} 15. O-O {[%clk 0:02:28]}  Rad8 {[%clk 0:01:47]} 16. Rad1 {[%clk 0:02:28]}  h6 {[%clk 0:01:46]} 17. Qe3 {[%clk 0:02:28]}  Nf6 {[%clk 0:01:45]} 18. Ne5 {[%clk 0:02:28]}  Ba8 {[%clk 0:01:36]} 19. Bf3 {[%clk 0:02:25]}  Bd5 {[%clk 0:01:28]} 20. a3 {[%clk 0:02:22]}  Rc8 {[%clk 0:01:24]} 21. Rfe1 {[%clk 0:02:21]}  Rfd8 {[%clk 0:01:20]} 22. h3 {[%clk 0:02:20]}  Bb3 {[%clk 0:01:17]} 23. Rd2 {[%clk 0:02:20]}  Nd5 {[%clk 0:01:16]} 24. Bxd5 {[%clk 0:02:19]}  Bxd5 {[%clk 0:01:15]} 25. Qg3 {[%clk 0:02:20]}  f6 {[%clk 0:01:11]} 26. Ng6 {[%clk 0:02:19]}  Qxg3 {[%clk 0:01:09]} 27. fxg3 {[%clk 0:02:20]}  Kf7 {[%clk 0:01:08]} 28. Nf4 {[%clk 0:02:19]}  Bc4 {[%clk 0:01:08]} 29. Rf2 {[%clk 0:02:19]}  a5 {[%clk 0:01:03]} 30. g4 {[%clk 0:02:19]}  Rd6 {[%clk 0:00:56]} 31. Kh2 {[%clk 0:02:18]}  b5 {[%clk 0:00:54]} 32. Kg3 {[%clk 0:02:16]}  b4 {[%clk 0:00:53]} 33. axb4 {[%clk 0:02:16]}  axb4 {[%clk 0:00:54]} 34. Re3 {[%clk 0:02:17]}  Rb8 {[%clk 0:00:50]} 35. h4 {[%clk 0:02:06]}  Rb5 {[%clk 0:00:33]} 36. Nh3 {[%clk 0:01:59]}  Ke7 {[%clk 0:00:31]} 37. g5 {[%clk 0:01:59]}  hxg5 {[%clk 0:00:30]} 38. hxg5 {[%clk 0:01:59]}  bxc3 {[%clk 0:00:27]} 39. bxc3 {[%clk 0:01:59]}  Rdb6 {[%clk 0:00:26]} 40. gxf6+ {[%clk 0:01:57]}  gxf6 {[%clk 0:00:27]} 41. Nf4 {[%clk 0:01:57]}  Kd6 {[%clk 0:00:22]} 42. Rd2 {[%clk 0:01:49]}  Rb2 {[%clk 0:00:21]} 43. Rd1 {[%clk 0:01:47]}  Rb1 {[%clk 0:00:22]} 44. Rxb1 {[%clk 0:01:45]}  Rxb1 {[%clk 0:00:23]} 45. Nh5 {[%clk 0:01:45]}  Ke7 {[%clk 0:00:21]} 46. Nf4 {[%clk 0:01:45]}  Kd6 {[%clk 0:00:21]} 47. Kg4 {[%clk 0:01:45]}  Rc1 {[%clk 0:00:20]} 48. Kh5 {[%clk 0:01:43]}  Rh1+ {[%clk 0:00:20]} 49. Kg6 {[%clk 0:01:43]}  e5 {[%clk 0:00:19]} 50. dxe5+ {[%clk 0:01:41]}  fxe5 {[%clk 0:00:20]} 51. Nh5 {[%clk 0:01:38]}  Ke6 {[%clk 0:00:12]} 52. g4 {[%clk 0:01:36]}  Rg1 {[%clk 0:00:09]} 53. g5 {[%clk 0:01:36]}  Bb5 {[%clk 0:00:07]} 54. Kh6 {[%clk 0:01:33]}  Be8 {[%clk 0:00:07]} 55. Ng7+ {[%clk 0:01:33]}  Kf7 {[%clk 0:00:06]} 56. Rf3+ {[%clk 0:01:31]}  Ke7 {[%clk 0:00:06]} 57. Nxe8 {[%clk 0:01:29]}  Kxe8 {[%clk 0:00:05]} 58. g6 {[%clk 0:01:30]}  Ke7 {[%clk 0:00:02]} 59. g7 {[%clk 0:01:30]}  e4 {[%clk 0:00:02]} 60. Rf4 {[%clk 0:01:28]}  e3 {[%clk 0:00:02]} 61. Kh7 {[%clk 0:01:25]}  e2 {[%clk 0:00:02]} 62. Re4+ {[%clk 0:01:23]}  Kf7 {[%clk 0:00:03]} 63. g8=Q+ {[%clk 0:01:10]}  Rxg8 {[%clk 0:00:03]} 64. Rxe2 {[%clk 0:01:11]}  Rc8 {[%clk 0:00:02]} 65. Re3 {[%clk 0:01:11]}  Kf6 {[%clk 0:00:02]} 66. Kh6 {[%clk 0:01:10]}  Rc5 {[%clk 0:00:03]} 67. Kh7 {[%clk 0:01:10]}  Kf7 {[%clk 0:00:03]} 68. Kh6 {[%clk 0:01:10]}  Kf6 {[%clk 0:00:03]} 69. Kh7 {[%clk 0:01:10]}  Kf7 {[%clk 0:00:04]} 70. Kh6 {[%clk 0:01:11]}  Kf6 {[%clk 0:00:05]} 1/2-1/2


[Site "https://www.chess.com"]

[Event "Titled Tuesday Blitz February 28 Early 2023"]
[White "Kowalczyk, Pawel"]
[Black "Bernadskiy, Vitaliy"]
[WhiteFideId "1130641"]
[BlackFideId "14100371"]
[WhiteElo "2324"]
[BlackElo "2488"]
[Result "1-0"]
[Round "08"]
[TimeControl "180+2"]
[Date "2023.02.28"]
[WhiteClock "0:00:13"]
[BlackClock "0:00:01"]

1. e4 {[%clk 0:03:00]}  g6 {[%clk 0:02:55]} 2. d4 {[%clk 0:03:00]}  d6 {[%clk 0:02:52]} 3. f4 {[%clk 0:02:59]}  Na6 {[%clk 0:02:50]} 4. Nf3 {[%clk 0:02:58]}  c5 {[%clk 0:02:50]} 5. Bxa6 {[%clk 0:02:52]}  Qa5+ {[%clk 0:02:49]} 6. Nc3 {[%clk 0:02:52]}  bxa6 {[%clk 0:02:45]} 7. dxc5 {[%clk 0:02:50]}  Qxc5 {[%clk 0:02:46]} 8. Qd4 {[%clk 0:02:48]}  Qxd4 {[%clk 0:02:44]} 9. Nxd4 {[%clk 0:02:49]}  Bg7 {[%clk 0:02:44]} 10. Be3 {[%clk 0:02:49]}  Nf6 {[%clk 0:02:41]} 11. Nd5 {[%clk 0:02:05]}  Rb8 {[%clk 0:02:24]} 12. Nxe7 {[%clk 0:01:47]}  Bd7 {[%clk 0:02:21]} 13. Nd5 {[%clk 0:01:42]}  Nxd5 {[%clk 0:01:39]} 14. exd5 {[%clk 0:01:39]}  Rxb2 {[%clk 0:01:37]} 15. Kd2 {[%clk 0:01:24]}  Rb4 {[%clk 0:01:31]} 16. Rab1 {[%clk 0:01:06]}  Rxd4+ {[%clk 0:01:31]} 17. Bxd4 {[%clk 0:01:05]}  O-O {[%clk 0:01:14]} 18. Bxg7 {[%clk 0:01:04]}  Kxg7 {[%clk 0:01:15]} 19. Rb7 {[%clk 0:01:00]}  Bf5 {[%clk 0:01:15]} 20. c4 {[%clk 0:00:50]}  Rc8 {[%clk 0:01:12]} 21. Kc3 {[%clk 0:00:50]}  Be4 {[%clk 0:01:11]} 22. Kd4 {[%clk 0:00:48]}  Bxg2 {[%clk 0:01:11]} 23. Re1 {[%clk 0:00:46]}  Kf6 {[%clk 0:00:20]} 24. Ree7 {[%clk 0:00:45]}  Kf5 {[%clk 0:00:20]} 25. Rxf7+ {[%clk 0:00:44]}  Kg4 {[%clk 0:00:20]} 26. Rxa7 {[%clk 0:00:43]}  Bf1 {[%clk 0:00:18]} 27. Rac7 {[%clk 0:00:42]}  Rb8 {[%clk 0:00:17]} 28. Rb7 {[%clk 0:00:42]}  Rc8 {[%clk 0:00:16]} 29. Rfc7 {[%clk 0:00:42]}  Rf8 {[%clk 0:00:16]} 30. c5 {[%clk 0:00:28]}  Rxf4+ {[%clk 0:00:16]} 31. Ke3 {[%clk 0:00:28]}  dxc5 {[%clk 0:00:14]} 32. Rxc5 {[%clk 0:00:25]}  Bb5 {[%clk 0:00:12]} 33. Rxh7 {[%clk 0:00:20]}  Ra4 {[%clk 0:00:10]} 34. d6 {[%clk 0:00:18]}  Ra3+ {[%clk 0:00:06]} 35. Ke4 {[%clk 0:00:18]}  Rxa2 {[%clk 0:00:06]} 36. d7 {[%clk 0:00:17]}  Re2+ {[%clk 0:00:06]} 37. Kd5 {[%clk 0:00:15]}  Rd2+ {[%clk 0:00:06]} 38. Ke6 {[%clk 0:00:15]}  g5 {[%clk 0:00:03]} 39. Rg7 {[%clk 0:00:13]}  Kf4 {[%clk 0:00:02]} 40. Rf5+ {[%clk 0:00:13]}  Ke3 {[%clk 0:00:01]} 41. Re5+ {[%clk 0:00:13]}  Kf2 {[%clk 0:00:01]} 42. Rd5 {[%clk 0:00:13]} 1-0


[Site "https://www.chess.com"]

[Event "Titled Tuesday Blitz February 28 Early 2023"]
[White "Kvaloy, Aksel Bu"]
[Black "Rustemov, Alexander"]
[WhiteFideId "1528815"]
[BlackFideId "4119002"]
[WhiteElo "2208"]
[BlackElo "2887"]
[Result "0-1"]
[Round "08"]
[TimeControl "180+2"]
[Date "2023.02.28"]
[WhiteClock "0:00:02"]
[BlackClock "0:00:48"]

1. d4 {[%clk 0:03:00]}  g6 {[%clk 0:02:57]} 2. e4 {[%clk 0:02:58]}  Bg7 {[%clk 0:02:57]} 3. Nf3 {[%clk 0:02:58]}  d6 {[%clk 0:02:58]} 4. Bd3 {[%clk 0:02:59]}  Nf6 {[%clk 0:02:56]} 5. O-O {[%clk 0:02:59]}  O-O {[%clk 0:02:56]} 6. Re1 {[%clk 0:02:57]}  Bg4 {[%clk 0:02:54]} 7. Nbd2 {[%clk 0:02:55]}  Nfd7 {[%clk 0:02:53]} 8. c3 {[%clk 0:02:53]}  c5 {[%clk 0:02:53]} 9. h3 {[%clk 0:02:52]}  Bxf3 {[%clk 0:02:52]} 10. Nxf3 {[%clk 0:02:53]}  Nc6 {[%clk 0:02:53]} 11. Bc4 {[%clk 0:02:45]}  Qc7 {[%clk 0:02:46]} 12. Bb3 {[%clk 0:02:35]}  Rac8 {[%clk 0:02:43]} 13. Bg5 {[%clk 0:02:29]}  Rfe8 {[%clk 0:02:34]} 14. Rc1 {[%clk 0:02:28]}  b5 {[%clk 0:02:30]} 15. Qd2 {[%clk 0:02:26]}  Na5 {[%clk 0:02:23]} 16. Bh6 {[%clk 0:02:17]}  Nxb3 {[%clk 0:02:15]} 17. axb3 {[%clk 0:02:17]}  a5 {[%clk 0:02:08]} 18. h4 {[%clk 0:02:15]}  Nf6 {[%clk 0:02:03]} 19. e5 {[%clk 0:02:12]}  dxe5 {[%clk 0:02:02]} 20. dxe5 {[%clk 0:02:13]}  Red8 {[%clk 0:01:54]} 21. Qg5 {[%clk 0:02:12]}  Bxh6 {[%clk 0:01:47]} 22. Qxh6 {[%clk 0:02:09]}  Ng4 {[%clk 0:01:47]} 23. Qg5 {[%clk 0:02:06]}  h5 {[%clk 0:01:47]} 24. e6 {[%clk 0:02:06]}  Qd6 {[%clk 0:01:16]} 25. exf7+ {[%clk 0:01:53]}  Kxf7 {[%clk 0:01:17]} 26. g3 {[%clk 0:01:52]}  Qf6 {[%clk 0:01:16]} 27. Qxf6+ {[%clk 0:01:37]}  exf6 {[%clk 0:01:16]} 28. Ra1 {[%clk 0:01:36]}  Ra8 {[%clk 0:01:10]} 29. Rad1 {[%clk 0:01:36]}  Rxd1 {[%clk 0:01:00]} 30. Rxd1 {[%clk 0:01:37]}  a4 {[%clk 0:01:01]} 31. bxa4 {[%clk 0:01:18]}  Rxa4 {[%clk 0:01:02]} 32. Rd7+ {[%clk 0:01:18]}  Ke6 {[%clk 0:01:02]} 33. Rb7 {[%clk 0:01:19]}  b4 {[%clk 0:00:59]} 34. Rb6+ {[%clk 0:01:02]}  Kd5 {[%clk 0:00:58]} 35. Nd2 {[%clk 0:00:22]}  bxc3 {[%clk 0:00:50]} 36. bxc3 {[%clk 0:00:22]}  Ra1+ {[%clk 0:00:51]} 37. Kg2 {[%clk 0:00:19]}  Ra2 {[%clk 0:00:51]} 38. c4+ {[%clk 0:00:05]}  Ke5 {[%clk 0:00:51]} 39. Nf3+ {[%clk 0:00:05]}  Kf5 {[%clk 0:00:48]} 40. Ng1 {[%clk 0:00:02]}  Rxf2+ {[%clk 0:00:48]} 41. Kh1 {[%clk 0:00:02]}  Rh2# {[%clk 0:00:48]} 0-1


[Site "https://www.chess.com"]

[Event "Titled Tuesday Blitz February 28 Early 2023"]
[White "Drygalov, Sergey"]
[Black "Gunduz, Umut Erdem"]
[WhiteFideId "24171743"]
[BlackFideId "6381383"]
[WhiteElo "2533"]
[BlackElo "2182"]
[Result "1-0"]
[Round "08"]
[TimeControl "180+2"]
[Date "2023.02.28"]
[WhiteClock "0:00:07"]
[BlackClock "0:00:04"]

1. d4 {[%clk 0:03:00]}  Nf6 {[%clk 0:02:56]} 2. c4 {[%clk 0:03:01]}  e6 {[%clk 0:02:56]} 3. Nc3 {[%clk 0:03:01]}  c5 {[%clk 0:02:57]} 4. d5 {[%clk 0:03:01]}  exd5 {[%clk 0:02:57]} 5. cxd5 {[%clk 0:03:02]}  d6 {[%clk 0:02:58]} 6. Nf3 {[%clk 0:03:01]}  g6 {[%clk 0:02:58]} 7. e4 {[%clk 0:03:01]}  a6 {[%clk 0:02:53]} 8. a4 {[%clk 0:03:00]}  Bg4 {[%clk 0:02:52]} 9. Qb3 {[%clk 0:02:42]}  Bxf3 {[%clk 0:02:20]} 10. Qxb7 {[%clk 0:02:42]}  Nbd7 {[%clk 0:02:20]} 11. gxf3 {[%clk 0:02:42]}  Bg7 {[%clk 0:02:21]} 12. Be2 {[%clk 0:02:38]}  O-O {[%clk 0:02:17]} 13. Qb3 {[%clk 0:02:36]}  Nh5 {[%clk 0:02:12]} 14. h4 {[%clk 0:02:32]}  f5 {[%clk 0:01:55]} 15. Qc2 {[%clk 0:02:07]}  f4 {[%clk 0:01:43]} 16. a5 {[%clk 0:01:43]}  Bf6 {[%clk 0:01:40]} 17. Bd2 {[%clk 0:01:38]}  Bxh4 {[%clk 0:01:39]} 18. Na4 {[%clk 0:01:38]}  Bf6 {[%clk 0:01:09]} 19. O-O-O {[%clk 0:01:37]}  Bd4 {[%clk 0:01:02]} 20. Rh2 {[%clk 0:01:30]}  Qf6 {[%clk 0:00:59]} 21. Bc3 {[%clk 0:01:18]}  Bxc3 {[%clk 0:00:57]} 22. Qxc3 {[%clk 0:01:15]}  Qxc3+ {[%clk 0:00:56]} 23. bxc3 {[%clk 0:01:15]}  Nhf6 {[%clk 0:00:52]} 24. Kc2 {[%clk 0:01:15]}  Rfb8 {[%clk 0:00:49]} 25. Rhh1 {[%clk 0:01:14]}  Kf7 {[%clk 0:00:46]} 26. Rb1 {[%clk 0:01:14]}  Ke7 {[%clk 0:00:44]} 27. Rxb8 {[%clk 0:01:14]}  Rxb8 {[%clk 0:00:40]} 28. Nb2 {[%clk 0:01:07]}  Ne5 {[%clk 0:00:36]} 29. Nc4 {[%clk 0:00:51]}  Ned7 {[%clk 0:00:24]} 30. Bf1 {[%clk 0:00:37]}  h5 {[%clk 0:00:23]} 31. Rg1 {[%clk 0:00:37]}  Rg8 {[%clk 0:00:19]} 32. Nd2 {[%clk 0:00:35]}  Ne5 {[%clk 0:00:15]} 33. Be2 {[%clk 0:00:20]}  Kf7 {[%clk 0:00:11]} 34. Nc4 {[%clk 0:00:20]}  Nxc4 {[%clk 0:00:08]} 35. Bxc4 {[%clk 0:00:21]}  Nd7 {[%clk 0:00:07]} 36. Ra1 {[%clk 0:00:18]}  Ra8 {[%clk 0:00:05]} 37. Rb1 {[%clk 0:00:18]}  Ra7 {[%clk 0:00:04]} 38. Bf1 {[%clk 0:00:15]}  g5 {[%clk 0:00:02]} 39. Bh3 {[%clk 0:00:15]}  Ne5 {[%clk 0:00:02]} 40. Be6+ {[%clk 0:00:12]}  Ke7 {[%clk 0:00:02]} 41. Rh1 {[%clk 0:00:12]}  Nxf3 {[%clk 0:00:02]} 42. Rxh5 {[%clk 0:00:12]}  Kf6 {[%clk 0:00:02]} 43. Bg4 {[%clk 0:00:10]}  Ne5 {[%clk 0:00:02]} 44. Be2 {[%clk 0:00:10]}  Rb7 {[%clk 0:00:01]} 45. Rh6+ {[%clk 0:00:10]}  Kg7 {[%clk 0:00:02]} 46. Rxd6 {[%clk 0:00:10]}  c4 {[%clk 0:00:03]} 47. Rxa6 {[%clk 0:00:09]}  f3 {[%clk 0:00:03]} 48. Bf1 {[%clk 0:00:09]}  g4 {[%clk 0:00:03]} 49. Re6 {[%clk 0:00:08]}  Ng6 {[%clk 0:00:03]} 50. Bxc4 {[%clk 0:00:09]}  Nf4 {[%clk 0:00:03]} 51. Re5 {[%clk 0:00:09]}  Nh3 {[%clk 0:00:03]} 52. a6 {[%clk 0:00:07]}  Ra7 {[%clk 0:00:04]} 53. d6 {[%clk 0:00:07]}  Nxf2 {[%clk 0:00:05]} 54. Re7+ {[%clk 0:00:07]}  Kf6 {[%clk 0:00:05]} 55. Rxa7 {[%clk 0:00:07]}  g3 {[%clk 0:00:05]} 56. Rf7+ {[%clk 0:00:08]}  Ke5 {[%clk 0:00:06]} 57. a7 {[%clk 0:00:07]}  g2 {[%clk 0:00:05]} 58. Rg7 {[%clk 0:00:07]}  Nh3 {[%clk 0:00:04]} 59. a8=Q {[%clk 0:00:07]} 1-0


[Site "https://www.chess.com"]

[Event "Titled Tuesday Blitz February 28 Early 2023"]
[White "Atakhan, Abtin"]
[Black "Postny, Evgeny"]
[WhiteFideId "22502203"]
[BlackFideId "2804344"]
[WhiteElo "2189"]
[BlackElo "2509"]
[Result "0-1"]
[Round "08"]
[TimeControl "180+2"]
[Date "2023.02.28"]
[WhiteClock "0:00:04"]
[BlackClock "0:00:11"]

1. c4 {[%clk 0:03:00]}  g6 {[%clk 0:02:56]} 2. Nf3 {[%clk 0:02:59]}  Bg7 {[%clk 0:02:56]} 3. Nc3 {[%clk 0:02:58]}  c5 {[%clk 0:02:56]} 4. e3 {[%clk 0:02:57]}  Nc6 {[%clk 0:02:55]} 5. d4 {[%clk 0:02:58]}  d6 {[%clk 0:02:55]} 6. Be2 {[%clk 0:02:55]}  Bg4 {[%clk 0:02:55]} 7. O-O {[%clk 0:02:53]}  Bxf3 {[%clk 0:02:54]} 8. Bxf3 {[%clk 0:02:54]}  cxd4 {[%clk 0:02:54]} 9. exd4 {[%clk 0:02:54]}  Nf6 {[%clk 0:02:52]} 10. Re1 {[%clk 0:02:50]}  O-O {[%clk 0:02:52]} 11. Bf4 {[%clk 0:02:47]}  Rc8 {[%clk 0:02:50]} 12. Qd2 {[%clk 0:02:43]}  Re8 {[%clk 0:02:37]} 13. Rad1 {[%clk 0:02:33]}  a6 {[%clk 0:02:34]} 14. Bg5 {[%clk 0:02:17]}  Qa5 {[%clk 0:02:28]} 15. h4 {[%clk 0:02:07]}  h5 {[%clk 0:02:24]} 16. Re2 {[%clk 0:01:59]}  Nh7 {[%clk 0:02:20]} 17. Bxc6 {[%clk 0:01:51]}  Rxc6 {[%clk 0:02:13]} 18. Rxe7 {[%clk 0:01:32]}  Rxe7 {[%clk 0:02:12]} 19. Bxe7 {[%clk 0:01:33]}  Rxc4 {[%clk 0:02:12]} 20. Qe3 {[%clk 0:01:29]}  Qb6 {[%clk 0:01:54]} 21. b3 {[%clk 0:01:24]}  Bxd4 {[%clk 0:01:46]} 22. Qf4 {[%clk 0:00:59]}  Bxf2+ {[%clk 0:01:32]} 23. Qxf2 {[%clk 0:01:00]}  Qxf2+ {[%clk 0:01:32]} 24. Kxf2 {[%clk 0:01:01]}  Rxc3 {[%clk 0:01:33]} 25. Rxd6 {[%clk 0:01:00]}  Rc2+ {[%clk 0:01:20]} 26. Kf3 {[%clk 0:01:01]}  Rxa2 {[%clk 0:01:19]} 27. Rb6 {[%clk 0:01:01]}  Kg7 {[%clk 0:00:46]} 28. Bc5 {[%clk 0:00:40]}  Rd2 {[%clk 0:00:35]} 29. Rxb7 {[%clk 0:00:36]}  Nf6 {[%clk 0:00:34]} 30. Be3 {[%clk 0:00:20]}  Rd3 {[%clk 0:00:20]} 31. Ke2 {[%clk 0:00:19]}  Rd7 {[%clk 0:00:18]} 32. Rb6 {[%clk 0:00:16]}  Nd5 {[%clk 0:00:17]} 33. Bd4+ {[%clk 0:00:15]}  Kh6 {[%clk 0:00:12]} 34. Rxa6 {[%clk 0:00:10]}  Nf4+ {[%clk 0:00:12]} 35. Ke3 {[%clk 0:00:10]}  Nxg2+ {[%clk 0:00:12]} 36. Ke4 {[%clk 0:00:07]}  Nxh4 {[%clk 0:00:12]} 37. Ra8 {[%clk 0:00:06]}  Nf5 {[%clk 0:00:11]} 38. Bf6 {[%clk 0:00:04]}  g5 {[%clk 0:00:11]} 0-1


[Site "https://www.chess.com"]

[Event "Titled Tuesday Blitz February 28 Early 2023"]
[White "Seemann, Jakub"]
[Black "Fernandez Guillen, Ernesto J."]
[WhiteFideId "21874697"]
[BlackFideId "3512428"]
[WhiteElo "2364"]
[BlackElo "2423"]
[Result "0-1"]
[Round "08"]
[TimeControl "180+2"]
[Date "2023.02.28"]
[WhiteClock "0:00:03"]
[BlackClock "0:00:17"]

1. Nf3 {[%clk 0:03:00]}  Nf6 {[%clk 0:02:50]} 2. c4 {[%clk 0:02:56]}  g6 {[%clk 0:02:48]} 3. Nc3 {[%clk 0:02:56]}  Bg7 {[%clk 0:02:47]} 4. d4 {[%clk 0:02:57]}  d6 {[%clk 0:02:48]} 5. Bg5 {[%clk 0:02:56]}  O-O {[%clk 0:02:48]} 6. e3 {[%clk 0:02:57]}  b6 {[%clk 0:02:48]} 7. Qc2 {[%clk 0:02:57]}  Bb7 {[%clk 0:02:49]} 8. Bd3 {[%clk 0:02:58]}  Nbd7 {[%clk 0:02:48]} 9. O-O-O {[%clk 0:02:57]}  Qe8 {[%clk 0:02:46]} 10. h4 {[%clk 0:02:57]}  e5 {[%clk 0:02:41]} 11. d5 {[%clk 0:02:56]}  Nc5 {[%clk 0:02:38]} 12. Be2 {[%clk 0:02:56]}  Nfd7 {[%clk 0:02:33]} 13. e4 {[%clk 0:02:51]}  f5 {[%clk 0:02:31]} 14. exf5 {[%clk 0:02:50]}  gxf5 {[%clk 0:02:30]} 15. h5 {[%clk 0:02:45]}  e4 {[%clk 0:02:29]} 16. Nd4 {[%clk 0:02:44]}  a5 {[%clk 0:02:25]} 17. h6 {[%clk 0:02:42]}  Bf6 {[%clk 0:02:25]} 18. Bxf6 {[%clk 0:02:41]}  Rxf6 {[%clk 0:02:25]} 19. f4 {[%clk 0:02:34]}  Kh8 {[%clk 0:02:22]} 20. g4 {[%clk 0:02:34]}  fxg4 {[%clk 0:02:22]} 21. Bxg4 {[%clk 0:02:34]}  Rxf4 {[%clk 0:02:22]} 22. Rhg1 {[%clk 0:02:09]}  Qe5 {[%clk 0:02:14]} 23. Bxd7 {[%clk 0:02:06]}  Nd3+ {[%clk 0:02:07]} 24. Kb1 {[%clk 0:02:00]}  Rf2 {[%clk 0:01:58]} 25. Rd2 {[%clk 0:01:53]}  Qxd4 {[%clk 0:01:56]} 26. Rxf2 {[%clk 0:01:47]}  Nxf2 {[%clk 0:01:54]} 27. Be6 {[%clk 0:01:42]}  Rf8 {[%clk 0:01:49]} 28. Ka1 {[%clk 0:01:26]}  Bc8 {[%clk 0:01:42]} 29. Nb5 {[%clk 0:01:25]}  Qf6 {[%clk 0:01:37]} 30. Nxc7 {[%clk 0:01:19]}  Nd3 {[%clk 0:01:33]} 31. a3 {[%clk 0:01:15]}  Bxe6 {[%clk 0:01:23]} 32. Nxe6 {[%clk 0:01:15]}  Rg8 {[%clk 0:01:23]} 33. Rh1 {[%clk 0:00:30]}  Rc8 {[%clk 0:01:07]} 34. Qb3 {[%clk 0:00:20]}  Qf3 {[%clk 0:01:00]} 35. Rg1 {[%clk 0:00:15]}  Qf2 {[%clk 0:00:53]} 36. Qc3+ {[%clk 0:00:15]}  Ne5 {[%clk 0:00:53]} 37. Rg7 {[%clk 0:00:15]}  Rxc4 {[%clk 0:00:46]} 38. Re7 {[%clk 0:00:07]}  Qg1+ {[%clk 0:00:29]} 39. Ka2 {[%clk 0:00:07]}  Rxc3 {[%clk 0:00:29]} 40. Re8+ {[%clk 0:00:03]}  Qg8 {[%clk 0:00:29]} 41. Rxg8+ {[%clk 0:00:04]}  Kxg8 {[%clk 0:00:30]} 42. bxc3 {[%clk 0:00:05]}  a4 {[%clk 0:00:23]} 43. Kb2 {[%clk 0:00:05]}  Kf7 {[%clk 0:00:21]} 44. Ng5+ {[%clk 0:00:03]}  Kg6 {[%clk 0:00:20]} 45. Nxe4 {[%clk 0:00:03]}  Nc4+ {[%clk 0:00:21]} 46. Ka2 {[%clk 0:00:04]}  Kxh6 {[%clk 0:00:20]} 47. Nf2 {[%clk 0:00:02]}  Kg6 {[%clk 0:00:20]} 48. Kb1 {[%clk 0:00:02]}  h5 {[%clk 0:00:19]} 49. Kc1 {[%clk 0:00:03]}  Kf5 {[%clk 0:00:19]} 50. Kc2 {[%clk 0:00:03]}  h4 {[%clk 0:00:19]} 51. Kd3 {[%clk 0:00:04]}  b5 {[%clk 0:00:18]} 52. Ne4 {[%clk 0:00:02]}  h3 {[%clk 0:00:18]} 53. Nf2 {[%clk 0:00:02]}  h2 {[%clk 0:00:18]} 54. Nh1 {[%clk 0:00:03]}  Kf4 {[%clk 0:00:17]} 55. Kd4 {[%clk 0:00:04]}  Kf3 {[%clk 0:00:17]} 56. Kd3 {[%clk 0:00:03]}  Nxa3 {[%clk 0:00:17]} 0-1


[Site "https://www.chess.com"]

[Event "Titled Tuesday Blitz February 28 Early 2023"]
[White "Koridze, Lile"]
[Black "Subelj, Jan"]
[WhiteFideId "13612514"]
[BlackFideId "14618583"]
[WhiteElo "2047"]
[BlackElo "2480"]
[Result "0-1"]
[Round "08"]
[TimeControl "180+2"]
[Date "2023.02.28"]
[WhiteClock "0:02:49"]
[BlackClock "0:02:41"]

1. d4 {[%clk 0:03:00]}  Nc6 {[%clk 0:02:44]} 2. c4 {[%clk 0:02:54]}  e5 {[%clk 0:02:44]} 3. d5 {[%clk 0:02:52]}  Bb4+ {[%clk 0:02:44]} 4. Bd2 {[%clk 0:02:52]}  Bxd2+ {[%clk 0:02:44]} 5. Qxd2 {[%clk 0:02:53]}  Nce7 {[%clk 0:02:44]} 6. e4 {[%clk 0:02:52]}  d6 {[%clk 0:02:43]} 7. Nc3 {[%clk 0:02:52]}  f5 {[%clk 0:02:43]} 8. exf5 {[%clk 0:02:51]}  Bxf5 {[%clk 0:02:42]} 9. Nf3 {[%clk 0:02:52]}  Nf6 {[%clk 0:02:41]} 10. Bd3 {[%clk 0:02:50]}  e4 {[%clk 0:02:41]} 11. Nd4 {[%clk 0:02:49]}  exd3 {[%clk 0:02:41]} 0-1


[Site "https://www.chess.com"]